fUSD/lending_fUSD_20240513
["ID","MTS","AMOUNT","RATE_DAILY","PERIOD"]
[326926600,1715596413453,800.0,0.00010328,2]
[326926651,1715596415079,800.0,0.0001115,2]
[326926669,1715596415623,600.0,9.506e-05,2]
[326926681,1715596417256,600.0,0.00010328,2]
[326926686,1715596419004,600.0,0.0001115,2]
[326926988,1715596470464,6928.34778758,6.94e-05,2]
[326927107,1715597432759,-167.83102793,0.00011688,2]
[326927108,1715597432768,-250.0,0.00011715,2]
[326927109,1715597432777,-352.16291896,0.00011751,2]
[326927110,1715597432789,-2697.48051752,0.00011751,2]
[326927111,1715597432801,-380.04295626,0.00011751,2]
[326927112,1715597433997,-2863.29626526,0.00011751,2]
[326927142,1715597439783,-830.357342,0.00011751,2]
[326927143,1715597439792,-321.91,0.00011788,2]
[326927144,1715597439802,-155.0,0.00011802,2]
[326927145,1715597439811,-1000.0,0.00011812,2]
[326927146,1715597439821,-154.0,0.00011864,2]
[326927147,1715597439830,-4425.44526103,0.00011907,2]
[326927148,1715597439840,-1600.12480527,0.00012049,2]
[326927149,1715597439849,-2794.57293396,0.00012087,2]
[326927150,1715597439860,-4767.28706604,0.00012087,2]
[326927151,1715597439869,-373.08499286,0.00012087,2]
[326927152,1715597439881,-7358.34500714,0.00012087,2]
[326927153,1715597439890,-14653.15499296,0.00012087,2]
[326927154,1715597439902,-5000.0,0.00012087,2]
[326927163,1715597441268,-346.83500704,0.00012087,2]
[326927164,1715597441278,-291.42952278,0.00012191,2]
[326927165,1715597441289,-317.96545138,0.00012191,2]
[326927166,1715597441298,-263.95564932,0.00012279,2]
[326927167,1715597441310,-1339.37623426,0.00012279,2]
[326927168,1715597441319,-28658.54599803,0.0001228,2]
[326927169,1715597441329,-710.05,0.000123,2]
[326927170,1715597441339,-1022.0,0.000126,2]
[326927172,1715597441348,-373.1648316,0.00012622,2]
[326927174,1715597441358,-1260.0,0.00012746,2]
[326927175,1715597441368,-292.678,0.00012746,2]
[326927176,1715597441378,-1789.0,0.00012746,2]
[326927177,1715597441388,-1226.0,0.00012746,2]
[326927178,1715597441397,-154.221,0.00012746,2]
[326927179,1715597441406,-210.4629,0.0001275,2]
[326927180,1715597441415,-186.22223211,0.00012751,2]
[326927181,1715597441424,-24873.07875278,0.0001277,2]
[326927201,1715597444887,-661.3131406,0.0001277,2]
[326927202,1715597444898,-6373.87060662,0.0001277,2]
[326927203,1715597444907,-200.0,0.00012777,2]
[326927204,1715597444917,-1000.0,0.00012777,2]
[326927205,1715597444927,-200.0,0.00012777,2]
[326927206,1715597444936,-500.0,0.00012777,2]
[326927207,1715597444946,-500.0,0.00012794,2]
[326927208,1715597444955,-4530.11496004,0.00012799,2]
[326927209,1715597444965,-4530.11496004,0.00012808,2]
[326927210,1715597444974,-281.7395,0.00012816,2]
[326927212,1715597444983,-4530.11496004,0.00012817,2]
[326927214,1715597444993,-4530.11496004,0.00012827,2]
[326927216,1715597445004,-3711.98837636,0.00012836,2]
[326927218,1715597445015,-818.12658368,0.00012836,2]
[326927219,1715597445024,-231.17,0.0001284,2]
[326927220,1715597445034,-4530.11496004,0.00012845,2]
[326927221,1715597445043,-213528.00974544,0.0001285,5]
[326927222,1715597445053,-4530.11496004,0.00012854,2]
[326927223,1715597445063,-4530.11496004,0.00012863,2]
[326927224,1715597445072,-353.81148112,0.00012866,2]
[326927225,1715597445081,-231.17,0.00012869,2]
[326927226,1715597445091,-666.42941081,0.0001287,2]
[326927227,1715597445101,-198.88015173,0.0001287,2]
[326927228,1715597445111,-231.17,0.0001287,2]
[326927229,1715597445120,-231.17,0.0001287,2]
[326927230,1715597445129,-4530.11496004,0.00012872,2]
[326927231,1715597445139,-500.0,0.00012876,2]
[326927232,1715597445148,-500.0,0.00012876,2]
[326927233,1715597445157,-464.0,0.00012876,2]
[326927234,1715597445165,-500.0,0.00012876,2]
[326927235,1715597445175,-500.0,0.00012876,2]
[326927236,1715597445184,-500.0,0.00012876,2]
[326927237,1715597445193,-500.0,0.00012876,2]
[326927238,1715597445202,-612.26,0.00012876,2]
[326927239,1715597445211,-208.29299492,0.00012876,2]
[326927240,1715597445223,-500.0,0.00012876,2]
[326927241,1715597445232,-500.0,0.00012876,2]
[326927242,1715597445243,-500.0,0.00012876,2]
[326927243,1715597445254,-158.76,0.00012876,2]
[326927244,1715597445264,-257.20430238,0.00012877,2]
[326927245,1715597445273,-255.49503332,0.00012877,2]
[326927246,1715597445282,-500.0,0.00012877,2]
[326927247,1715597445292,-500.0,0.00012877,2]
[326927248,1715597445301,-507.15892591,0.00012877,2]
[326927249,1715597445311,-260.4209643,0.00012878,2]
[326927250,1715597445323,-155.06301259,0.00012878,2]
[326927251,1715597445332,-206.33942574,0.00012878,2]
[326927252,1715597445342,-193.7707781,0.00012878,2]
[326927253,1715597445352,-754.3,0.00012878,2]
[326927254,1715597445363,-206.3699626,0.00012878,2]
[326927255,1715597445372,-155.0,0.00012878,2]
[326927256,1715597445382,-296.24619339,0.00012878,2]
[326927257,1715597445391,-308.20007533,0.00012878,2]
[326927258,1715597445400,-288.41238633,0.00012878,2]
[326927259,1715597445410,-49904.57,0.00012878,3]
[326927260,1715597445419,-500.0,0.00012878,2]
[326927261,1715597445428,-155.0,0.00012878,2]
[326927262,1715597445438,-294.90044969,0.00012878,2]
[326927263,1715597445447,-500.0,0.00012878,2]
[326927264,1715597445456,-500.0,0.00012878,2]
[326927265,1715597445466,-349.17293601,0.00012878,2]
[326927266,1715597445475,-409.34262434,0.00012879,2]
[326927267,1715597445487,-4761.11307675,0.00012879,2]
[326927268,1715597445497,-294.04659026,0.00012879,2]
[326927269,1715597445507,-500.0,0.00012879,2]
[326927270,1715597445517,-631.60550562,0.00012879,2]
[326927271,1715597445527,-500.0,0.00012879,2]
[326927272,1715597445536,-335.70842842,0.00012879,2]
[326927273,1715597445545,-493.81437962,0.00012879,2]
[326927274,1715597445554,-500.0,0.00012879,2]
[326927275,1715597445564,-500.0,0.00012879,2]
[326927276,1715597445573,-500.0,0.00012879,2]
[326927277,1715597445583,-500.0,0.00012879,2]
[326927278,1715597445592,-500.0,0.00012879,2]
[326927279,1715597445602,-500.0,0.00012879,2]
[326927280,1715597445611,-434.42111522,0.00012879,2]
[326927281,1715597445623,-645.28871002,0.00012879,2]
[326927282,1715597445632,-500.0,0.00012879,2]
[326927283,1715597445642,-500.0,0.00012879,2]
[326927284,1715597445652,-500.0,0.00012879,2]
[326927285,1715597445662,-500.0,0.00012879,2]
[326927286,1715597445671,-500.0,0.00012879,2]
[326927287,1715597445680,-500.0,0.00012879,2]
[326927288,1715597445690,-612.26,0.00012879,2]
[326927289,1715597445699,-612.26,0.00012879,2]
[326927290,1715597445709,-500.0,0.00012879,2]
[326927291,1715597445718,-500.0,0.00012879,2]
[326927292,1715597445727,-500.0,0.00012879,2]
[326927293,1715597445736,-500.0,0.00012879,2]
[326927294,1715597445745,-500.0,0.00012879,2]
[326927295,1715597445756,-500.0,0.00012879,2]
[326927296,1715597445765,-134336.98470996,0.0001288,2]
[326927305,1715597446935,-218848.67879854,0.0001288,2]
[326927306,1715597446945,-568.03222421,0.0001288,2]
[326927307,1715597446954,-36545.52674664,0.0001288,2]
[326927308,1715597446966,-11491.54687743,0.0001288,2]
[326927309,1715597446975,-301.56698633,0.0001288,2]
[326927310,1715597446985,-547.35752792,0.0001288,2]
[326927311,1715597446995,-186.93391276,0.0001288,2]
[326927312,1715597447007,-158.46539353,0.0001288,2]
[326927313,1715597447017,-155.96100922,0.0001288,2]
[326927314,1715597447027,-288.72057434,0.0001288,2]
[326927315,1715597447036,-139.15302291,0.0001288,2]
[326927316,1715597447047,-2343.36758848,0.0001288,2]
[326927317,1715597447058,-432.6940474,0.0001288,2]
[326927318,1715597458116,900.54106739,6.94e-05,2]
[326927322,1715597480629,500.0,8.684e-05,2]
[326927324,1715597482288,500.0,0.00010328,2]
[326927327,1715597681009,2080.14359513,0.0001,2]
[326927464,1715598640306,-470.97421239,0.00011662,2]
[326927465,1715598640316,-250.0,0.00011663,2]
[326927466,1715598640326,-948.98580469,0.00011744,2]
[326927568,1715598643678,-51.01419531,0.00011744,2]
[326927569,1715598643688,-213.59,0.00011748,2]
[326927570,1715598643698,-297.02,0.00011748,2]
[326927571,1715598643707,-105.11581419,0.00011845,2]
[326927574,1715598645919,-72.05418581,0.00011845,2]
[326927575,1715598645929,-400.0,0.000119,4]
[326927576,1715598645938,-75.97381419,0.00011972,2]
[326927577,1715598645950,-424.02618581,0.00011972,2]
[326927578,1715598645959,-900.0,0.00012,4]
[326927579,1715598645968,-205.93250557,0.000121,4]
[326927580,1715598645980,-1123.98068445,0.000121,4]
[326927582,1715598646190,-70.08680998,0.000121,4]
[326927584,1715598646200,-1083.49897002,0.000122,4]
[326927589,1715599161592,-313.98280826,0.00011662,2]
[326927591,1715599192344,2546.24693446,8.747e-05,2]
[326927592,1715599199631,969.40394336,0.00011662,2]
[326927593,1715599208240,170.36631392,8.747e-05,2]
[326927594,1715599208263,2375.88062054,8.747e-05,2]
[326927595,1715599221613,969.09233054,0.00011662,2]
[326927596,1715599224244,655.02704892,8.747e-05,2]
[326927597,1715599224267,480.4173658,8.747e-05,2]
[326927600,1715599371174,261.65234022,0.00011662,2]
[326927602,1715599572685,261.65234022,0.00011662,2]
[326927606,1715599776238,155.0,0.00011662,2]
[326927607,1715599782278,1002.65559896,0.0001,2]
[326927608,1715599786750,177.17,0.00011572,2]
[326927631,1715599832125,-892.13938172,0.00011663,2]
[326927686,1715599838676,-258.96061828,0.00011663,2]
[326927688,1715599838686,-250.0,0.00011663,2]
[326927690,1715599838696,-4000.0,0.00011748,2]
[326927692,1715599838706,-250.0,0.00011755,2]
[326927694,1715599838721,-1500.0,0.00011756,2]
[326927696,1715599838732,-9831.02,0.00011791,2]
[326927698,1715599838742,-212.59,0.00011794,2]
[326927700,1715599838752,-1000.0,0.00011813,2]
[326927702,1715599838763,-164.02,0.00011849,2]
[326927704,1715599838773,-300.0,0.000119,4]
[326927706,1715599838783,-1847.25034,0.00011972,2]
[326927708,1715599838794,-409.94933149,0.00012,2]
[326927710,1715599838804,-600.0,0.00012,4]
[326927712,1715599838813,-627.19616757,0.000121,4]
[326927783,1715599840967,-259.4235408,0.000121,4]
[326927790,1715599844064,-13.38029163,0.000121,4]
[326927791,1715599844075,-288.16147345,0.000122,2]
[326927794,1715599844524,-512.75499999,0.000122,2]
[326927801,1715599846206,-860.80599786,0.000122,2]
[326927802,1715599846219,-4130.1507,0.000122,2]
[326927812,1715600070367,1661.4523548,6.94e-05,2]
[326927813,1715600070391,4000.0,6.94e-05,2]
[326927814,1715600070414,1484.84702582,6.94e-05,2]
[326927816,1715600395413,155.0,0.00011662,2]
[326927817,1715600410338,155.0,0.00011662,2]
[326927819,1715600457759,-2551.15,0.00011663,2]
[326927820,1715600457781,-250.0,0.00011748,2]
[326927821,1715600457802,-1000.0,0.00011799,2]
[326927822,1715600457823,-211.59,0.00011808,2]
[326927823,1715600457846,-409.94933149,0.00012194,2]
[326927824,1715600457866,-540.24391711,0.00012195,2]
[326927825,1715600457887,-7511.44304258,0.00012199,2]
[326927826,1715600457908,-8774.00484497,0.000122,2]
[326927827,1715600457929,-2000.0,0.000122,2]
[326927828,1715600457949,-200.0,0.000122,2]
[326927829,1715600457982,-2011.54568,0.000122,2]
[326927830,1715600458004,-200.0,0.000122,2]
[326927831,1715600458028,-1200.0,0.000122,4]
[326927832,1715600458050,-4242.9456886,0.0001228,2]
[326927833,1715600458073,-1500.0,0.000123,4]
[326927834,1715600458094,-200.0,0.00012322,2]
[326927835,1715600458116,-300.0,0.000124,4]
[326927836,1715600458139,-200.0,0.00012445,2]
[326927837,1715600458162,-300.0,0.000125,4]
[326927838,1715600458184,-200.0,0.0001257,2]
[326927839,1715600458208,-300.0,0.000126,4]
[326927840,1715600458231,-3647.013,0.00012678,2]
[326927841,1715600458253,-200.0,0.00012695,2]
[326927842,1715600458276,-300.0,0.000127,4]
[326927843,1715600458299,-244.07796056,0.00012751,2]
[326927844,1715600458322,-22807.72639511,0.00012769,2]
[326927845,1715600458342,-500.0,0.00012776,2]
[326927846,1715600458655,-558.5556,0.00012777,2]
[326927847,1715600458678,-7323.6661,0.00012777,2]
[326927848,1715600458701,-695.3295,0.00012777,2]
[326927849,1715600458724,-2500.0,0.00012777,2]
[326927850,1715600458747,-200.0,0.00012777,2]
[326927851,1715600458770,-1000.0,0.00012777,2]
[326927852,1715600458791,-200.0,0.00012777,2]
[326927853,1715600458811,-500.0,0.00012777,2]
[326927854,1715600458832,-188.63686278,0.00012788,2]
[326927855,1715600458853,-35630.9065,0.00012789,2]
[326927856,1715600458874,-188.63686277,0.00012794,2]
[326927857,1715600458896,-2005.52,0.000128,2]
[326927858,1715600458920,-416.0,0.000128,4]
[326927859,1715600458943,-1243.3891412,0.000128,2]
[326927860,1715600458963,-188.63686277,0.000128,2]
[326927861,1715600458985,-1243.38914118,0.00012809,2]
[326927862,1715600459006,-1243.38914118,0.00012818,2]
[326927863,1715600459026,-1243.38914118,0.00012827,2]
[326927864,1715600459048,-1243.38914118,0.00012836,2]
[326927865,1715600459069,-1243.38914118,0.00012845,2]
[326927866,1715600459089,-36979.55005317,0.0001285,5]
[326927867,1715600459110,-1243.38914118,0.00012855,2]
[326927868,1715600459131,-1243.38914118,0.00012864,2]
[326927869,1715600459154,-154.12,0.00012867,2]
[326927870,1715600459175,-1243.38914118,0.00012873,2]
[326927871,1715600459197,-16215.7939462,0.00012873,2]
[326927872,1715600459220,-1486.4326748,0.00012873,2]
[326927873,1715600459245,-434.77772626,0.00012873,2]
[326927874,1715600459268,-231.5742414,0.00012876,2]
[326927875,1715600459292,-535.73,0.00012876,2]
[326927876,1715600459315,-500.0,0.00012876,2]
[326927877,1715600459337,-98159.0,0.00012877,2]
[326927878,1715600459361,-151.0,0.00012877,2]
[326927879,1715600459383,-151.0,0.00012877,2]
[326927880,1715600459406,-640.480898,0.00012877,2]
[326927881,1715600459427,-640.480898,0.00012877,2]
[326927882,1715600459448,-151.0,0.00012877,2]
[326927883,1715600459472,-151.0,0.00012877,2]
[326927884,1715600459492,-151.0,0.00012877,2]
[326927885,1715600459516,-151.0,0.00012877,2]
[326927886,1715600459537,-183.886318,0.00012877,2]
[326927887,1715600459559,-183.886318,0.00012877,2]
[326927888,1715600459582,-151.0,0.00012877,2]
[326927889,1715600459603,-151.0,0.00012877,2]
[326927890,1715600459625,-151.0,0.00012877,2]
[326927891,1715600459648,-156.092289,0.00012877,2]
[326927892,1715600459670,-1739.935049,0.00012877,2]
[326927893,1715600459692,-1739.935049,0.00012877,2]
[326927894,1715600459713,-151.0,0.00012877,2]
[326927895,1715600459733,-151.0,0.00012877,2]
[326927896,1715600459754,-322.264714,0.00012877,2]
[326927897,1715600459775,-322.264714,0.00012877,2]
[326927898,1715600459795,-185.605022,0.00012877,2]
[326927899,1715600459815,-185.605022,0.00012877,2]
[326927900,1715600459836,-987.049883,0.00012877,2]
[326927901,1715600459857,-987.049883,0.00012877,2]
[326927902,1715600459878,-151.0,0.00012877,2]
[326927903,1715600459898,-151.0,0.00012877,2]
[326927904,1715600459920,-219.740974,0.00012877,2]
[326927905,1715600459944,-151.0,0.00012877,2]
[326927906,1715600459965,-294.04659026,0.00012879,2]
[326927907,1715600459985,-362.74132644,0.00012879,2]
[326927908,1715600460007,-3731.742,0.0001288,2]
[326927909,1715600460027,-18119.0,0.0001288,2]
[326927910,1715600460049,-5258.468349,0.0001288,3]
[326927911,1715600460073,-715.7,0.0001288,4]
[326927912,1715600460095,-500.0,0.00012881,2]
[326927913,1715600460118,-500.0,0.00012881,2]
[326927914,1715600460142,-1243.38914118,0.00012882,2]
[326927915,1715600460162,-500.0,0.00012888,2]
[326927916,1715600460185,-500.0,0.00012888,2]
[326927917,1715600460208,-585.28715928,0.00012888,2]
[326927918,1715600460233,-500.0,0.00012888,2]
[326927919,1715600460256,-570.58,0.00012888,2]
[326927920,1715600460278,-500.0,0.00012888,2]
[326927921,1715600460298,-500.0,0.00012888,2]
[326927922,1715600460320,-500.0,0.00012888,2]
[326927923,1715600460341,-151.0,0.00012888,2]
[326927924,1715600460363,-152.106614,0.00012888,2]
[326927925,1715600460387,-219.740974,0.00012888,2]
[326927926,1715600460410,-151.0,0.00012888,2]
[326927927,1715600460432,-198.88015173,0.00012889,2]
[326927928,1715600460455,-154.12,0.00012889,2]
[326927929,1715600460482,-15059.59988637,0.00012889,2]
[326927930,1715600460506,-151.0,0.00012889,2]
[326927931,1715600460528,-151.0,0.00012889,2]
[326927932,1715600460552,-638.181641,0.00012889,2]
[326927933,1715600460574,-278.54746,0.00012889,2]
[326927934,1715600460596,-638.181641,0.00012889,2]
[326927935,1715600460618,-151.0,0.00012889,2]
[326927936,1715600460641,-151.0,0.00012889,2]
[326927937,1715600460661,-151.0,0.00012889,2]
[326927938,1715600460681,-159.404806,0.00012889,2]
[326927939,1715600460702,-159.404806,0.00012889,2]
[326927940,1715600460724,-151.0,0.00012889,2]
[326927941,1715600460746,-151.0,0.00012889,2]
[326927942,1715600460769,-221.279077,0.00012889,2]
[326927943,1715600460790,-267.239808,0.00012889,2]
[326927944,1715600460811,-221.279077,0.00012889,2]
[326927945,1715600460832,-267.239808,0.00012889,2]
[326927946,1715600460853,-151.0,0.00012889,2]
[326927947,1715600460873,-195.497916,0.00012889,2]
[326927948,1715600460894,-195.497916,0.00012889,2]
[326927949,1715600460916,-151.0,0.00012889,2]
[326927950,1715600460937,-430.878227,0.00012889,2]
[326927951,1715600460958,-430.878227,0.00012889,2]
[326927952,1715600460979,-151.0,0.00012889,2]
[326927953,1715600461000,-151.0,0.00012889,2]
[326927954,1715600461022,-151.0,0.00012889,2]
[326927955,1715600461046,-151.0,0.00012889,2]
[326927956,1715600461070,-151.0,0.00012889,2]
[326927957,1715600461093,-640.480898,0.00012889,2]
[326927958,1715600461116,-640.480898,0.00012889,2]
[326927959,1715600461141,-151.0,0.00012889,2]
[326927960,1715600461165,-151.0,0.00012889,2]
[326927961,1715600461190,-151.0,0.00012889,2]
[326927962,1715600461211,-151.0,0.00012889,2]
[326927963,1715600461232,-183.886318,0.00012889,2]
[326927964,1715600461253,-183.886318,0.00012889,2]
[326927965,1715600461275,-151.0,0.00012889,2]
[326927966,1715600461296,-151.0,0.00012889,2]
[326927967,1715600461334,-256.553067,0.00012889,2]
[326927968,1715600461358,-1739.935049,0.00012889,2]
[326927969,1715600461383,-1739.935049,0.00012889,2]
[326927970,1715600461408,-151.0,0.00012889,2]
[326927971,1715600461430,-224.404414,0.00012889,2]
[326927972,1715600461453,-322.264714,0.00012889,2]
[326927973,1715600461481,-322.264714,0.00012889,2]
[326927974,1715600461506,-185.605022,0.00012889,2]
[326927975,1715600461529,-185.605022,0.00012889,2]
[326927976,1715600461555,-987.049883,0.00012889,2]
[326927977,1715600461578,-987.049883,0.00012889,2]
[326927978,1715600461601,-500.0,0.0001289,2]
[326927979,1715600461624,-500.0,0.0001289,2]
[326927980,1715600461649,-1243.38914118,0.00012891,2]
[326927981,1715600461671,-500.0,0.00012892,2]
[326927982,1715600461693,-587.67337585,0.00012897,2]
[326927983,1715600461715,-500.0,0.00012897,2]
[326927984,1715600461735,-500.0,0.00012897,2]
[326927985,1715600461757,-500.0,0.00012897,2]
[326927986,1715600461779,-500.0,0.00012897,2]
[326927987,1715600461800,-302.0,0.00012897,2]
[326927988,1715600461822,-500.0,0.00012897,2]
[326927989,1715600461844,-158.3350855,0.00012898,2]
[326927990,1715600461868,-2326.76401065,0.00012898,2]
[326927991,1715600461889,-2621.41862001,0.00012898,2]
[326927992,1715600461913,-1378.90396912,0.00012898,2]
[326927993,1715600461935,-217.17697784,0.00012898,2]
[326927994,1715600461956,-237.26391854,0.00012898,2]
[326927995,1715600461977,-707.84680816,0.00012898,2]
[326927996,1715600461999,-782.7917937,0.00012898,2]
[326927997,1715600462024,-155.4414,0.00012898,2]
[326927998,1715600462046,-610.61,0.00012898,2]
[326927999,1715600462068,-155.0,0.00012898,2]
[326928000,1715600462089,-156.75949667,0.00012898,2]
[326928001,1715600462113,-535.73,0.00012898,2]
[326928002,1715600462135,-151.0,0.00012898,2]
[326928003,1715600462158,-219.740974,0.00012898,2]
[326928004,1715600462180,-151.0,0.00012898,2]
[326928005,1715600462203,-500.0,0.00012899,2]
[326928006,1715600462226,-500.0,0.00012899,2]
[326928007,1715600462251,-21292.11432931,0.00012899,2]
[326928008,1715600462274,-10000.0,0.00012899,2]
[326928009,1715600462297,-10000.0,0.00012899,2]
[326928010,1715600462320,-10000.0,0.00012899,2]
[326928011,1715600462343,-10000.0,0.00012899,2]
[326928012,1715600462368,-10000.0,0.00012899,2]
[326928013,1715600462391,-10000.0,0.00012899,2]
[326928014,1715600462417,-10000.0,0.00012899,2]
[326928015,1715600462439,-9702.76537602,0.00012899,2]
[326928016,1715600462463,-151.0,0.00012899,2]
[326928017,1715600462487,-151.0,0.00012899,2]
[326928018,1715600462511,-153.545952,0.00012899,2]
[326928019,1715600462533,-151.0,0.00012899,2]
[326928020,1715600462560,-151.0,0.00012899,2]
[326928021,1715600462583,-151.0,0.00012899,2]
[326928022,1715600462606,-151.0,0.00012899,2]
[326928023,1715600462859,-151.0,0.00012899,2]
[326928024,1715600462885,-151.0,0.00012899,2]
[326928025,1715600462907,-282.894021,0.00012899,2]
[326928026,1715600462928,-282.894021,0.00012899,2]
[326928027,1715600462951,-282.894021,0.00012899,2]
[326928028,1715600462972,-282.894021,0.00012899,2]
[326928029,1715600462994,-203.674893,0.00012899,2]
[326928030,1715600463017,-203.674893,0.00012899,2]
[326928031,1715600463040,-203.674893,0.00012899,2]
[326928032,1715600463063,-203.674893,0.00012899,2]
[326928033,1715600463085,-151.0,0.00012899,2]
[326928034,1715600463106,-151.0,0.00012899,2]
[326928035,1715600463127,-151.0,0.00012899,2]
[326928036,1715600463150,-151.0,0.00012899,2]
[326928037,1715600463170,-151.0,0.00012899,2]
[326928038,1715600463191,-151.0,0.00012899,2]
[326928039,1715600463211,-151.0,0.00012899,2]
[326928040,1715600463232,-151.0,0.00012899,2]
[326928041,1715600463254,-151.0,0.00012899,2]
[326928042,1715600463275,-151.0,0.00012899,2]
[326928043,1715600463296,-267.749984,0.00012899,2]
[326928044,1715600463317,-500.0,0.00012899,2]
[326928045,1715600463338,-638.181641,0.00012899,2]
[326928046,1715600463359,-638.181641,0.00012899,2]
[326928047,1715600463381,-638.181641,0.00012899,2]
[326928048,1715600463406,-638.181641,0.00012899,2]
[326928049,1715600463427,-500.0,0.00012899,2]
[326928050,1715600463448,-200.0,0.00012899,2]
[326928051,1715600463472,-638.181641,0.00012899,2]
[326928052,1715600463494,-638.181641,0.00012899,2]
[326928053,1715600463516,-638.181641,0.00012899,2]
[326928054,1715600463544,-638.181641,0.00012899,2]
[326928055,1715600463567,-273.353561,0.00012899,2]
[326928056,1715600463591,-151.0,0.00012899,2]
[326928057,1715600463612,-151.0,0.00012899,2]
[326928058,1715600463633,-151.0,0.00012899,2]
[326928059,1715600463665,-151.0,0.00012899,2]
[326928060,1715600463693,-500.0,0.00012899,2]
[326928061,1715600463716,-151.0,0.00012899,2]
[326928062,1715600463739,-151.0,0.00012899,2]
[326928063,1715600463763,-151.0,0.00012899,2]
[326928064,1715600463786,-151.0,0.00012899,2]
[326928065,1715600463808,-500.0,0.00012899,2]
[326928066,1715600463830,-500.0,0.00012899,2]
[326928067,1715600463851,-159.404806,0.00012899,2]
[326928068,1715600463874,-159.404806,0.00012899,2]
[326928069,1715600463900,-159.404806,0.00012899,2]
[326928070,1715600463923,-159.404806,0.00012899,2]
[326928071,1715600463948,-159.404806,0.00012899,2]
[326928072,1715600463971,-159.404806,0.00012899,2]
[326928073,1715600463992,-159.404806,0.00012899,2]
[326928074,1715600464017,-159.404806,0.00012899,2]
[326928075,1715600464040,-151.0,0.00012899,2]
[326928076,1715600464064,-151.0,0.00012899,2]
[326928077,1715600464087,-151.0,0.00012899,2]
[326928078,1715600464111,-151.0,0.00012899,2]
[326928079,1715600464134,-151.0,0.00012899,2]
[326928080,1715600464156,-151.0,0.00012899,2]
[326928081,1715600464178,-151.0,0.00012899,2]
[326928082,1715600464199,-265.840048,0.00012899,2]
[326928083,1715600464221,-500.0,0.00012899,2]
[326928084,1715600464242,-313.13540601,0.00012899,2]
[326928085,1715600464264,-221.279077,0.00012899,2]
[326928086,1715600464288,-500.0,0.00012899,2]
[326928087,1715600464312,-221.279077,0.00012899,2]
[326928088,1715600464337,-500.0,0.00012899,2]
[326928089,1715600464360,-221.279077,0.00012899,2]
[326928090,1715600464385,-500.0,0.00012899,2]
[326928091,1715600464411,-221.279077,0.00012899,2]
[326928092,1715600464433,-500.0,0.00012899,2]
[326928093,1715600464455,-221.279077,0.00012899,2]
[326928094,1715600464484,-500.0,0.00012899,2]
[326928095,1715600464505,-500.0,0.00012899,2]
[326928096,1715600464527,-500.0,0.00012899,2]
[326928097,1715600464549,-500.0,0.00012899,2]
[326928098,1715600464572,-500.0,0.00012899,2]
[326928099,1715600464594,-500.0,0.00012899,2]
[326928100,1715600464617,-314.38884575,0.00012899,2]
[326928101,1715600464640,-267.239808,0.00012899,2]
[326928102,1715600464669,-267.239808,0.00012899,2]
[326928103,1715600464692,-267.239808,0.00012899,2]
[326928104,1715600464715,-221.279077,0.00012899,2]
[326928105,1715600464738,-267.239808,0.00012899,2]
[326928106,1715600464759,-221.279077,0.00012899,2]
[326928107,1715600464781,-267.239808,0.00012899,2]
[326928108,1715600464803,-221.279077,0.00012899,2]
[326928109,1715600464825,-221.279077,0.00012899,2]
[326928110,1715600464846,-221.279077,0.00012899,2]
[326928111,1715600464868,-267.239808,0.00012899,2]
[326928112,1715600464890,-267.239808,0.00012899,2]